fUSD/lending_fUSD_20250101
["ID","MTS","AMOUNT","RATE_DAILY","PERIOD"]
[347376358,1735745445709,-661.04,0.00010958,2]
[347376359,1735745445719,-500.0,0.00010958,2]
[347376360,1735745445730,-1125.67,0.00010958,2]
[347376361,1735745445742,-899.67,0.00010958,2]
[347376362,1735745445752,-1475.04,0.00010958,2]
[347376363,1735745445762,-500.0,0.00010958,2]
[347376364,1735745445771,-1441.26,0.00010958,2]
[347376365,1735745445781,-1436.59,0.00010958,2]
[347376366,1735745445791,-500.0,0.00010958,2]
[347376367,1735745445801,-2160.95,0.00010958,2]
[347376368,1735745445813,-1714.02,0.00010958,2]
[347376369,1735745445823,-500.0,0.00010958,2]
[347376370,1735745445833,-500.0,0.00010958,2]
[347376371,1735745445843,-496.7,0.00010958,2]
[347376372,1735745445853,-501.44,0.00010958,2]
[347376373,1735745445864,-500.0,0.00010973,2]
[347376374,1735745445874,-260.45669897,0.00010973,2]
[347376375,1735745445884,-500.85822845,0.00010973,2]
[347376376,1735745445894,-158.88092276,0.00010973,2]
[347376377,1735745445904,-500.0,0.00010973,2]
[347376378,1735745445915,-500.0,0.00010973,2]
[347376379,1735745445925,-173.28547371,0.00010986,2]
[347376380,1735745445936,-247.27710192,0.00010986,2]
[347376381,1735745445946,-150.0,0.00010986,2]
[347376382,1735745445957,-5416.0,0.00010986,2]
[347376383,1735745445968,-500.0,0.00010994,2]
[347376384,1735745445979,-488.18557031,0.00010994,2]
[347376385,1735745445989,-500.0,0.00010994,2]
[347376387,1735745445999,-558.80660992,0.00010994,2]
[347376388,1735745446010,-5000.0,0.00010995,2]
[347376389,1735745446020,-5000.0,0.00010996,2]
[347376390,1735745446030,-5000.0,0.00010997,2]
[347376391,1735745446040,-2353.46,0.00010997,2]
[347376392,1735745446050,-4090.1,0.00010997,2]
[347376393,1735745446060,-4882.53,0.00010997,2]
[347376394,1735745446070,-791.43382079,0.00010997,2]
[347376395,1735745446080,-3444.75,0.00010997,2]
[347376397,1735745446091,-9528.64,0.00010997,2]
[347376399,1735745446103,-21690.58,0.00010997,2]
[347376401,1735745446117,-5081.58,0.00010997,2]
[347376403,1735745446127,-13226.52,0.00010997,2]
[347376405,1735745446136,-1547.0,0.00010998,2]
[347376407,1735745446146,-5000.0,0.00010998,2]
[347376408,1735745446156,-150.0,0.00010999,2]
[347376409,1735745446166,-1000.0,0.00010999,2]
[347376410,1735745446176,-1000.0,0.00010999,2]
[347376411,1735745446186,-5000.0,0.00010999,2]
[347376412,1735745446196,-1597.07500864,0.00010999,2]
[347376413,1735745446205,-5000.0,0.00010999,2]
[347376414,1735745446215,-703.4,0.00010999,2]
[347376415,1735745446225,-6634.96,0.00010999,2]
[347376416,1735745446234,-26747.23090496,0.00011,2]
[347376417,1735745446244,-2956567.33344782,0.00011,2]
[347376418,1735745446255,-104796.54078724,0.00011,2]
[347376419,1735745446265,-17780113.3497747,0.00011,2]
[347376425,1735745446850,-1227.21394694,0.00011,2]
[347376426,1735745446891,-90500.00000001,0.00011,2]
[347376427,1735745446903,-113149.92886718,0.00011,2]
[347376428,1735745446914,-2196.92500435,0.00011,2]
[347376429,1735745446926,-2877.15669223,0.00011,2]
[347376430,1735745446951,-1067.9999996,0.00011,2]
[347376431,1735745446962,-18400.0,0.00011,2]
[347376432,1735745447007,-722.61,0.00011,2]
[347376433,1735745447097,-739.73230278,0.00011,2]
[347376434,1735745447109,-40756.25035685,0.00011,2]
[347376435,1735745447132,-557.9782299,0.00011,2]
[347376436,1735745447619,-16501.85691754,0.00010563,2]
[347376437,1735745447630,-335.17470444,0.00010563,2]
[347376438,1735745447642,-342.09568364,0.00010563,2]
[347376439,1735745447654,-260.44,0.00010563,2]
[347376440,1735745447666,-4171.7295382,0.00010563,2]
[347376441,1735745447675,-5641.40944358,0.00011,2]
[347376442,1735745447686,-1573.29359815,0.00011,2]
[347376443,1735745447698,-7901.67657273,0.00011,2]
[347376444,1735745447729,-1042.36436997,0.00011,2]
[347376445,1735745447747,-5340.1523523,0.00011,2]
[347376446,1735745447759,-1086.00001,0.00011,2]
[347376447,1735745447770,-1862.54424,0.00011,2]
[347376448,1735745447782,-6905.45253584,0.00011,2]
[347376449,1735745447793,-500.00608853,0.00011,2]
[347376450,1735745447805,-257022.20336438,0.00011,2]
[347376451,1735745447915,-294.766356,0.00011,2]
[347376452,1735745447926,-1847.35466494,0.00011,2]
[347376453,1735745447937,-15347.92244726,0.00011,2]
[347376454,1735745447948,-2149.99923283,0.00011,2]
[347376455,1735745447959,-4128.63986883,0.00011,2]
[347376456,1735745447970,-3933.36463944,0.00011,2]
[347376457,1735745447982,-2288.91045091,0.00011,2]
[347376458,1735745447993,-438.37999999,0.00011,2]
[347376459,1735745448004,-563.992002,0.00011,2]
[347376460,1735745448015,-346.08150003,0.00011,2]
[347376461,1735745448032,-644.82818535,0.00011,2]
[347376462,1735745448044,-33558.17119288,0.00011,2]
[347376463,1735745448732,-1285.73,0.00010958,2]
[347376464,1735745448743,-21345.96135529,0.00011,2]
[347376465,1735745448754,-4817.62646549,0.00011,2]
[347376466,1735745448767,-7714.896462,0.00011,2]
[347376467,1735745448780,-2104324.00943715,0.00011,2]
[347376468,1735745448800,-2177.02760022,0.00011,2]
[347376469,1735745448814,-345.52999999,0.00011,2]
[347376470,1735745448826,-316.57642937,0.00011,2]
[347376471,1735745448838,-1207.38541534,0.00011,2]
[347376472,1735745448849,-251.579918,0.00011,2]
[347376473,1735745448860,-562.26516642,0.00011,2]
[347376474,1735745448871,-33188.94314799,0.00011,2]
[347376475,1735745448882,-383.20020393,0.00011,2]
[347376476,1735745448893,-24010.25,0.00011,2]
[347376477,1735745448904,-41747.73232735,0.00011,2]
[347376478,1735745448915,-20252.04194209,0.00011,2]
[347376479,1735745448927,-24702.30326925,0.00011,2]
[347376480,1735745448954,-2516.16206871,0.00011,2]
[347376481,1735745448965,-664.717,0.00011,2]
[347376482,1735745448976,-1001.42032437,0.00011,2]
[347376483,1735745448988,-4600.0,0.00011,2]
[347376484,1735745448999,-578.58314681,0.00011,2]
[347376485,1735745449009,-468.8786624,0.00011,2]
[347376486,1735745449020,-459.4436244,0.00011,2]
[347376487,1735745449031,-578.349716,0.00011,2]
[347376488,1735745449042,-427.42,0.00011,2]
[347376489,1735745449053,-513.4034575,0.00011,2]
[347376490,1735745449064,-567.93,0.00011,2]
[347376491,1735745449075,-475.5,0.00011,2]
[347376492,1735745449087,-602.72741978,0.00011,2]
[347376493,1735745449098,-954.6,0.00011,2]
[347376494,1735745449109,-764.72434,0.00011,2]
[347376495,1735745449121,-3950.02900052,0.00011,2]
[347376496,1735745449132,-1074.86189178,0.00011,2]
[347376497,1735745449740,-250.0,0.00010142,2]
[347376498,1735745449750,-479.12371714,0.00010958,2]
[347376499,1735745449812,-20.87628286,0.00010958,2]
[347376500,1735745449823,-151.49,0.00010958,2]
[347376501,1735745449833,-77691.84799585,0.00011,2]
[347376502,1735745449844,-740.40033588,0.00011,2]
[347376503,1735745449855,-566.07448601,0.00011,2]
[347376504,1735745449867,-923.7996316,0.00011,2]
[347376505,1735745449878,-254.25,0.00011,2]
[347376506,1735745449898,-1281.46614566,0.00011,2]
[347376507,1735745449909,-556.78398471,0.00011,2]
[347376508,1735745449920,-735.832,0.00011,2]
[347376509,1735745449931,-3950.78810474,0.00011,2]
[347376510,1735745449942,-5882.00284964,0.00011,2]
[347376511,1735745449970,-2396.963137,0.00011,2]
[347376512,1735745449981,-175389.60672001,0.00011,2]
[347376513,1735745450006,-71229.0,0.00011,2]
[347376514,1735745450017,-50000.11973999,0.00011,2]
[347376515,1735745450028,-279.03799999,0.00011,2]
[347376516,1735745450039,-4919.07120143,0.00011,2]
[347376517,1735745450051,-2946.36745992,0.00011,2]
[347376520,1735745638043,279.36,8.219e-05,2]
[347376521,1735745828564,-874.86,9.82e-05,2]
[347376522,1735745828593,-8625.14,9.901e-05,2]
[347376523,1735745979900,186.33,9.596e-05,2]
[347376525,1735746307420,205.7,9.582e-05,2]
[347376526,1735746556286,265.39,8.219e-05,2]
[347376529,1735746602210,250.0,9.284e-05,2]
[347376567,1735746632500,-290.8,9.611e-05,2]
[347376568,1735746632512,-9709.2,9.611e-05,2]
[347376570,1735746632521,-1000.0,9.627e-05,2]
[347376571,1735746632531,-163.83,9.757e-05,2]
[347376572,1735746632542,-150.0,9.888e-05,2]
[347376573,1735746632552,-150.0,9.888e-05,2]
[347376574,1735746632562,-150.0,9.888e-05,2]
[347376575,1735746632571,-186.89385327,9.888e-05,2]
[347376576,1735746632580,-150.0,9.888e-05,2]
[347376577,1735746632590,-150.0,9.888e-05,2]
[347376578,1735746632601,-23764.8601429,9.888e-05,2]
[347376579,1735746632614,-25973.52174032,9.888e-05,2]
[347376580,1735746632626,-261.61811678,9.888e-05,2]
[347376581,1735746632637,-178.20188332,9.9e-05,3]
[347376582,1735746632651,-121.79811668,9.9e-05,3]
[347376583,1735746632660,-150.0,9.914e-05,2]
[347376584,1735746632670,-645.44144331,9.918e-05,2]
[347376585,1735746632679,-27.95710931,9.94e-05,2]
[347376586,1735746632692,-122.04289069,9.94e-05,2]
[347376587,1735746632702,-150.0,9.956e-05,2]
[347376588,1735746632713,-150.0,9.966e-05,2]
[347376589,1735746632724,-150.0,9.992e-05,2]
[347376590,1735746632735,-600.0,0.0001,3]
[347376591,1735746632746,-387.32410921,0.00010001,2]
[347376592,1735746632758,-14861.97340681,0.00010001,2]
[347376593,1735746632769,-815.98904547,0.00010001,2]
[347376594,1735746632787,-384.26068181,0.00010001,2]
[347376595,1735746632798,-5774.3627567,0.00010001,2]
[347376596,1735746632807,-150.0,0.00010018,2]
[347376598,1735746632817,-150.0,0.00010025,2]
[347376600,1735746632827,-150.0,0.00010045,2]
[347376602,1735746632836,-150.0,0.00010045,2]
[347376604,1735746632845,-150.0,0.00010071,2]
[347376606,1735746632855,-150.0,0.00010094,2]
[347376608,1735746632864,-150.0,0.00010097,2]
[347376610,1735746632874,-900.0,0.000101,3]
[347376611,1735746632883,-150.0,0.00010123,2]
[347376613,1735746632892,-150.0,0.00010149,2]
[347376615,1735746632901,-150.0,0.00010162,2]
[347376617,1735746632911,-150.0,0.00010175,2]
[347376619,1735746632920,-150.0,0.00010192,2]
[347376621,1735746632929,-1200.0,0.000102,3]
[347376623,1735746632938,-150.0,0.00010202,2]
[347376625,1735746632948,-150.0,0.00010202,2]
[347376627,1735746632957,-150.0,0.00010228,2]
[347376629,1735746632967,-150.0,0.00010231,2]
[347376631,1735746632976,-150.0,0.00010254,2]
[347376633,1735746632985,-150.0,0.0001028,2]
[347376635,1735746632995,-150.0,0.000103,2]
[347376637,1735746633003,-1500.0,0.000103,3]
[347376639,1735746633013,-150.0,0.00010306,2]
[347376641,1735746633022,-150.0,0.00010332,2]
[347376643,1735746633032,-771.32,0.00010341,2]
[347376645,1735746633041,-437.44,0.00010341,2]
[347376647,1735746633051,-150.0,0.00010359,2]
[347376649,1735746633060,-150.0,0.00010359,2]
[347376651,1735746633070,-150.0,0.00010368,2]
[347376653,1735746633081,-418.54,0.00010378,2]
[347376655,1735746633091,-150.0,0.00010378,2]
[347376657,1735746633100,-150.0,0.00010385,2]
[347376659,1735746633110,-300.0,0.000104,3]
[347376661,1735746633120,-150.0,0.00010411,2]
[347376663,1735746633129,-150.0,0.00010437,2]
[347376665,1735746633139,-150.0,0.00010437,2]
[347376667,1735746633148,-265.39,0.00010438,2]
[347376669,1735746633161,-507.76,0.0001045,2]
[347376671,1735746633172,-252.949,0.0001045,2]
[347376672,1735746633186,-10521.0,0.0001045,2]
[347376674,1735746633196,-749.0597,0.00010455,2]
[347376677,1735746633206,-150.0,0.00010463,2]
[347376678,1735746633215,-150.0,0.00010489,2]
[347376680,1735746633224,-201.01,0.00010491,2]
[347376682,1735746633234,-496.4,0.00010496,2]
[347376685,1735746633243,-300.0,0.000105,3]
[347376687,1735746633253,-150.0,0.00010506,2]
[347376688,1735746633262,-150.0,0.00010515,2]
[347376691,1735746633274,-150.0,0.00010515,2]
[347376693,1735746633284,-492.85,0.00010519,2]
[347376695,1735746633293,-134053.0,0.00010526,2]
[347376697,1735746633303,-150.0,0.00010542,2]
[347376699,1735746633313,-507.3,0.00010553,2]
[347376700,1735746633322,-15027.61290956,0.00010555,2]
[347376702,1735746633331,-150.0,0.00010568,2]
[347376704,1735746633341,-150.0,0.00010574,2]
[347376706,1735746633350,-150.0,0.00010594,2]
[347376708,1735746633359,-300.0,0.000106,3]
[347376710,1735746633368,-150.0,0.0001062,2]
[347376712,1735746633378,-151.0,0.00010626,2]
[347376714,1735746633387,-150.0,0.00010643,2]
[347376716,1735746633397,-150.0,0.00010646,2]
[347376717,1735746633407,-150.0,0.00010672,2]
[347376718,1735746633417,-150.0,0.00010672,2]
[347376719,1735746633427,-150.0,0.00010699,2]
[347376720,1735746633436,-858.9046,0.000107,2]
[347376721,1735746633446,-300.0,0.000107,3]
[347376722,1735746633455,-492.84,0.000107,2]
[347376723,1735746633465,-500.38,0.000107,2]
[347376724,1735746633475,-507.55,0.000107,2]
[347376725,1735746633484,-150.0,0.00010712,2]
[347376726,1735746633495,-150.0,0.00010725,2]
[347376727,1735746633504,-150.0,0.00010751,2]
[347376728,1735746633514,-150.0,0.00010777,2]
[347376729,1735746633523,-39755.141,0.00010778,2]
[347376730,1735746633533,-150.0,0.0001078,2]
[347376731,1735746633543,-644.9154,0.0001079,2]
[347376732,1735746633552,-302.0,0.000108,3]
[347376733,1735746633562,-150.0,0.00010803,2]
[347376734,1735746633571,-150.0,0.00010829,2]
[347376735,1735746633582,-150.0,0.00010829,2]
[347376736,1735746633591,-1000.0,0.00010831,2]
[347376737,1735746633602,-150.0,0.00010849,2]
[347376738,1735746633611,-150.0,0.00010856,2]
[347376739,1735746633621,-643.99690965,0.00010858,2]
[347376740,1735746633631,-1083.9231,0.00010858,2]
[347376741,1735746633640,-8529.0015,0.00010858,2]
[347376742,1735746633651,-5000.0,0.00010858,2]
[347376743,1735746633661,-150.0,0.00010882,2]
[347376744,1735746633670,-2283.56832,0.0001089,2]
[347376745,1735746633679,-434.79575306,0.000109,2]
[347376746,1735746633689,-175.58489505,0.000109,2]
[347376747,1735746633699,-175.58489503,0.000109,2]
[347376748,1735746633709,-175.58489503,0.000109,2]
[347376749,1735746633720,-175.58489503,0.000109,2]
[347376750,1735746633732,-645.44144331,0.000109,2]
[347376751,1735746633742,-1005.0,0.000109,2]
[347376753,1735746633752,-208.233,0.00010905,2]
[347376755,1735746633761,-1865.495,0.00010905,2]
[347376756,1735746633771,-150.0,0.00010908,2]
[347376757,1735746633781,-150.0,0.00010918,2]
[347376758,1735746633790,-150.0,0.00010934,2]
[347376759,1735746633800,-155392.77190846,0.00010957,2]
[347376760,1735746633810,-308.53495982,0.00010957,2]
[347376761,1735746633820,-500.0,0.00010957,2]
[347376762,1735746633830,-488.18557031,0.00010957,2]
[347376763,1735746633839,-500.0,0.00010957,2]
[347376764,1735746633849,-558.80660992,0.00010957,2]
[347376765,1735746633859,-173.20073443,0.00010957,2]
[347376766,1735746633868,-1794.0,0.00010958,2]
[347376767,1735746633879,-5565.65,0.00010958,2]
[347376768,1735746633889,-1778.44,0.00010958,2]
[347376769,1735746633899,-1380.83,0.00010958,2]
[347376770,1735746633909,-265.14643546,0.00010958,2]
[347376771,1735746633918,-1361.82,0.00010958,2]
[347376772,1735746633928,-1763.02,0.00010958,2]
[347376773,1735746633938,-500.0,0.00010958,2]
[347376774,1735746633948,-500.0,0.00010958,2]
[347376775,1735746633957,-500.0,0.00010958,2]
[347376776,1735746633967,-500.0,0.00010958,2]
[347376777,1735746633977,-509.96,0.00010958,2]
[347376778,1735746633986,-932.43,0.00010958,2]
[347376779,1735746633996,-815.79,0.00010958,2]
[347376780,1735746634006,-505.29,0.00010958,2]
[347376781,1735746634015,-500.0,0.00010958,2]
[347376782,1735746634025,-1044.06,0.00010958,2]
[347376783,1735746634034,-500.0,0.00010958,2]
[347376784,1735746634044,-500.0,0.00010958,2]
[347376785,1735746634053,-500.0,0.00010958,2]
[347376786,1735746634063,-650.72,0.00010958,2]
[347376787,1735746634073,-500.0,0.00010958,2]
[347376788,1735746634087,-1317.85,0.00010958,2]
[347376789,1735746634096,-500.0,0.00010958,2]
[347376790,1735746634106,-500.0,0.00010958,2]
[347376791,1735746634119,-500.0,0.00010958,2]
[347376792,1735746634128,-500.0,0.00010958,2]
[347376793,1735746634137,-525.98,0.00010958,2]
[347376794,1735746634147,-500.0,0.00010958,2]
[347376795,1735746634161,-500.0,0.00010958,2]
[347376796,1735746634171,-500.0,0.00010958,2]
[347376797,1735746634180,-500.0,0.00010958,2]
[347376798,1735746634190,-2215.08,0.00010958,2]
[347376799,1735746634199,-574.78,0.00010958,2]
[347376800,1735746634209,-500.0,0.00010958,2]
[347376801,1735746634218,-500.0,0.00010958,2]
[347376802,1735746634228,-500.0,0.00010958,2]
[347376803,1735746634237,-500.0,0.00010958,2]
[347376804,1735746634247,-500.0,0.00010958,2]
[347376805,1735746634257,-500.0,0.00010958,2]
[347376806,1735746634266,-500.0,0.00010958,2]
[347376807,1735746634275,-788.09,0.00010958,2]
[347376808,1735746634285,-997.14,0.00010958,2]
[347376809,1735746634294,-500.0,0.00010958,2]
[347376810,1735746634303,-500.0,0.00010958,2]
[347376811,1735746634312,-500.0,0.00010958,2]
[347376812,1735746634322,-590.2,0.00010958,2]
[347376813,1735746634331,-157.47,0.00010958,7]
[347376814,1735746634341,-500.0,0.00010958,2]
[347376815,1735746634350,-970.14,0.00010958,2]
[347376816,1735746634359,-3000.98,0.00010958,2]
[347376817,1735746634368,-945.22,0.00010958,2]
[347376818,1735746634378,-500.0,0.00010958,2]
[347376819,1735746634387,-1142.2,0.00010958,2]
[347376820,1735746634397,-500.0,0.00010958,2]
[347376821,1735746634408,-1109.01,0.00010958,2]
[347376822,1735746634418,-500.0,0.00010958,2]
[347376823,1735746634427,-650.35,0.00010958,2]
[347376824,1735746634437,-500.0,0.00010958,2]
[347376825,1735746634446,-500.0,0.00010958,2]
[347376826,1735746634455,-1157.99,0.00010958,2]
[347376827,1735746634465,-500.0,0.00010958,2]
[347376828,1735746634474,-500.0,0.00010958,2]
[347376829,1735746634483,-1598.62,0.00010958,2]
[347376830,1735746634493,-984.24,0.00010958,2]
[347376831,1735746634503,-669.7,0.00010958,2]
[347376832,1735746634513,-500.0,0.00010958,2]
[347376833,1735746634522,-500.0,0.00010958,2]
[347376834,1735746634531,-500.0,0.00010958,2]
[347376835,1735746634543,-672.17,0.00010958,2]
[347376836,1735746634552,-500.0,0.00010958,2]
[347376837,1735746634561,-500.0,0.00010958,2]
[347376838,1735746634571,-500.0,0.00010958,2]
[347376839,1735746634580,-596.0,0.00010958,2]
[347376840,1735746634590,-935.57,0.00010958,2]
[347376841,1735746634599,-500.0,0.00010958,2]
[347376842,1735746634609,-1653.39,0.00010958,2]
[347376843,1735746634618,-500.0,0.00010958,2]
[347376844,1735746634628,-518.05,0.00010958,2]
[347376845,1735746634638,-1507.83,0.00010958,2]
[347376846,1735746634647,-500.0,0.00010958,2]
[347376847,1735746634659,-593.38160083,0.00010958,2]
[347376848,1735746634668,-595.44,0.00010958,2]
[347376849,1735746634678,-662.39,0.00010958,2]
[347376850,1735746634687,-500.0,0.00010958,2]
[347376851,1735746634697,-722.70352,0.00010958,2]
[347376852,1735746634706,-500.0,0.00010958,2]
[347376853,1735746634716,-786.23,0.00010958,2]
[347376854,1735746634725,-500.0,0.00010958,2]
[347376855,1735746634735,-500.0,0.00010958,2]
[347376856,1735746634744,-500.0,0.00010958,2]
[347376857,1735746634754,-500.0,0.00010958,2]
[347376858,1735746634763,-500.0,0.00010958,2]
[347376865,1735746635035,-500.0,0.00010958,2]
[347376866,1735746635046,-811.6,0.00010958,2]
[347376867,1735746635059,-500.0,0.00010958,2]
[347376868,1735746635070,-500.0,0.00010958,2]
[347376869,1735746635084,-500.0,0.00010958,2]
[347376870,1735746635094,-749.95,0.00010958,2]
[347376871,1735746635103,-500.0,0.00010958,2]
[347376872,1735746635112,-1797.35,0.00010958,2]
[347376873,1735746635122,-1044.79,0.00010958,2]
[347376874,1735746635132,-1008.746829,0.00010958,2]
[347376875,1735746635141,-535.69,0.00010958,2]
[347376876,1735746635154,-500.0,0.00010958,2]
[347376877,1735746635164,-500.0,0.00010958,2]
[347376878,1735746635173,-534.71,0.00010958,2]
[347376879,1735746635182,-500.0,0.00010958,2]
[347376880,1735746635193,-681.5,0.00010958,2]
[347376881,1735746635202,-500.0,0.00010958,2]
[347376882,1735746635211,-500.0,0.00010958,2]
[347376883,1735746635220,-500.0,0.00010958,2]
[347376884,1735746635230,-500.92,0.00010958,2]
[347376885,1735746635239,-992.2,0.00010958,2]
[347376886,1735746635249,-506.0,0.00010958,2]
[347376887,1735746635259,-500.0,0.00010958,2]
[347376888,1735746635268,-500.0,0.00010958,2]
[347376889,1735746635278,-875.05,0.00010958,2]
[347376890,1735746635287,-893.08,0.00010958,2]
[347376891,1735746635297,-8886.68,0.00010958,2]
[347376892,1735746635307,-500.0,0.00010958,2]
[347376893,1735746635316,-500.0,0.00010958,2]
[347376894,1735746635326,-598.75,0.00010958,2]
[347376895,1735746635335,-1031.2,0.00010958,2]
[347376896,1735746635345,-623.41022951,0.00010958,2]
[347376897,1735746635355,-500.0,0.00010958,2]
[347376898,1735746635364,-639.27,0.00010958,2]
[347376899,1735746635373,-500.0,0.00010958,2]
[347376900,1735746635383,-500.0,0.00010958,2]
[347376901,1735746635392,-500.0,0.00010958,2]
[347376902,1735746635404,-500.0,0.00010958,2]
[347376903,1735746635413,-500.0,0.00010958,2]
[347376904,1735746635423,-1810.19,0.00010958,2]
[347376905,1735746635433,-614.13,0.00010958,2]
[347376906,1735746635442,-500.0,0.00010958,2]
[347376907,1735746635452,-743.25,0.00010958,2]
[347376908,1735746635461,-1586.87,0.00010958,2]
[347376909,1735746635471,-500.0,0.00010958,2]
[347376910,1735746635480,-500.0,0.00010958,2]
[347376911,1735746635489,-500.0,0.00010958,2]
[347376912,1735746635499,-500.0,0.00010958,2]
[347376913,1735746635508,-500.0,0.00010958,2]
[347376914,1735746635517,-500.0,0.00010958,2]
[347376915,1735746635527,-1009.35,0.00010958,2]
[347376916,1735746635536,-803.18,0.00010958,2]
[347376917,1735746635547,-1644.87,0.00010958,2]
[347376918,1735746635557,-500.0,0.00010958,2]
[347376919,1735746635567,-1078.77,0.00010958,2]
[347376920,1735746635576,-1444.87,0.00010958,2]
[347376921,1735746635586,-500.0,0.00010958,2]
[347376922,1735746635595,-370.63058969,0.00010958,2]
[347376923,1735746635604,-500.0,0.00010958,2]
[347376924,1735746635614,-695.52,0.00010958,2]
[347376925,1735746635624,-500.0,0.00010958,2]
[347376926,1735746635634,-2697.76,0.00010958,2]
[347376927,1735746635645,-500.0,0.00010958,2]
[347376928,1735746635660,-500.0,0.00010958,2]
[347376929,1735746635670,-862.18,0.00010958,2]
[347376930,1735746635679,-500.0,0.00010958,2]
[347376931,1735746635689,-500.0,0.00010958,2]
[347376932,1735746635699,-645.72,0.00010958,2]
[347376933,1735746635708,-878.02,0.00010958,2]
[347376934,1735746635718,-1247.11,0.00010958,2]
[347376935,1735746635727,-500.0,0.00010958,2]
[347376936,1735746635736,-500.0,0.00010958,2]
[347376937,1735746635746,-578.43,0.00010958,2]
[347376938,1735746635755,-1176.9,0.00010958,2]
[347376939,1735746635765,-500.0,0.00010958,2]
[347376940,1735746635775,-500.0,0.00010958,2]
[347376941,1735746635785,-989.07,0.00010958,2]
[347376942,1735746635795,-1374.78,0.00010958,2]
[347376943,1735746635805,-1642.61,0.00010958,2]
[347376944,1735746635814,-748.13,0.00010958,2]
[347376945,1735746635824,-501.56,0.00010958,2]
[347376946,1735746635835,-1499.86,0.00010958,2]
[347376947,1735746635845,-500.0,0.00010958,2]
[347376948,1735746635854,-1013.21,0.00010958,2]
[347376949,1735746635864,-500.0,0.00010958,2]
[347376950,1735746635874,-500.0,0.00010958,2]
[347376951,1735746635884,-864.42,0.00010958,2]
[347376952,1735746635894,-1343.2,0.00010958,2]
[347376953,1735746635904,-970.26,0.00010958,2]
[347376954,1735746635913,-855.86,0.00010958,2]
[347376955,1735746635923,-500.0,0.00010958,2]
[347376956,1735746635932,-620.17120095,0.00010958,2]
[347376957,1735746635943,-500.0,0.00010958,2]
[347376958,1735746635953,-2265.35,0.00010958,2]
[347376959,1735746635962,-1455.31,0.00010958,2]
[347376960,1735746635972,-617.58,0.00010958,2]
[347376961,1735746635982,-506.52,0.00010958,2]
[347376962,1735746635992,-1013.03,0.00010958,2]
[347376963,1735746636001,-500.0,0.00010958,2]
[347376964,1735746636011,-500.0,0.00010958,2]
[347376965,1735746636021,-500.0,0.00010958,2]
[347376966,1735746636030,-588.23,0.00010958,2]
[347376967,1735746636040,-500.0,0.00010958,2]
[347376968,1735746636049,-1626.52,0.00010958,2]
[347376969,1735746636059,-500.0,0.00010958,2]
[347376970,1735746636069,-632.97,0.00010958,2]
[347376971,1735746636081,-588.18,0.00010958,2]
[347376972,1735746636090,-500.0,0.00010958,2]
[347376973,1735746636100,-500.0,0.00010958,2]
[347376974,1735746636109,-3324.84,0.00010958,2]
[347376975,1735746636119,-622.62,0.00010958,2]
[347376976,1735746636129,-500.0,0.00010958,2]
[347376977,1735746636139,-500.0,0.00010958,2]
[347376978,1735746636148,-589.19,0.00010958,2]
[347376979,1735746636161,-769.93,0.00010958,2]